[Event "Titled Tuesday Blitz September 27 Late 2022"]
[White "Baskakov, Egor"]
[Black "Janaszak, Dawid"]
[WhiteFideId "24197866"]
[BlackFideId "1119206"]
[WhiteElo "2211"]
[BlackElo "2165"]
[Result "0-1"]
[Round "10"]
[TimeControl "180+1"]
[Date "2022.09.27"]
[WhiteClock "0:00:10"]
[BlackClock "0:00:09"]

1. e4 {[%clk 0:03:00]}  g6 {[%clk 0:02:56]} 2. g3 {[%clk 0:03:00]}  Bg7 {[%clk 0:02:56]} 3. Bg2 {[%clk 0:03:01]}  d6 {[%clk 0:02:55]} 4. d4 {[%clk 0:02:59]}  Nf6 {[%clk 0:02:54]} 5. Ne2 {[%clk 0:02:59]}  O-O {[%clk 0:02:54]} 6. O-O {[%clk 0:02:59]}  c5 {[%clk 0:02:53]} 7. h3 {[%clk 0:02:58]}  cxd4 {[%clk 0:02:52]} 8. Nxd4 {[%clk 0:02:59]}  Nc6 {[%clk 0:02:53]} 9. Ne2 {[%clk 0:02:59]}  Nd7 {[%clk 0:02:44]} 10. Nbc3 {[%clk 0:02:56]}  Rb8 {[%clk 0:02:41]} 11. a4 {[%clk 0:02:56]}  a6 {[%clk 0:02:40]} 12. Be3 {[%clk 0:02:57]}  b5 {[%clk 0:02:39]} 13. axb5 {[%clk 0:02:58]}  axb5 {[%clk 0:02:40]} 14. Nd4 {[%clk 0:02:58]}  Nxd4 {[%clk 0:02:32]} 15. Bxd4 {[%clk 0:02:58]}  Nf6 {[%clk 0:02:28]} 16. Nd5 {[%clk 0:02:52]}  e6 {[%clk 0:02:19]} 17. Nxf6+ {[%clk 0:02:46]}  Bxf6 {[%clk 0:02:20]} 18. b3 {[%clk 0:02:46]}  Be5 {[%clk 0:02:09]} 19. Qd2 {[%clk 0:02:43]}  Qc7 {[%clk 0:02:02]} 20. Ra2 {[%clk 0:02:39]}  Bb7 {[%clk 0:02:00]} 21. Kh2 {[%clk 0:02:37]}  Rfc8 {[%clk 0:01:56]} 22. f4 {[%clk 0:02:30]}  Bxd4 {[%clk 0:01:45]} 23. Qxd4 {[%clk 0:02:31]}  Ra8 {[%clk 0:01:40]} 24. Rxa8 {[%clk 0:02:24]}  Bxa8 {[%clk 0:01:40]} 25. Rf2 {[%clk 0:02:24]}  Qc5 {[%clk 0:01:37]} 26. Qd2 {[%clk 0:02:23]}  b4 {[%clk 0:01:35]} 27. f5 {[%clk 0:02:23]}  exf5 {[%clk 0:01:31]} 28. exf5 {[%clk 0:02:24]}  Bxg2 {[%clk 0:01:31]} 29. Kxg2 {[%clk 0:02:22]}  Re8 {[%clk 0:01:20]} 30. f6 {[%clk 0:02:09]}  Qc6+ {[%clk 0:01:15]} 31. Kh2 {[%clk 0:02:09]}  Qc5 {[%clk 0:01:15]} 32. Kg2 {[%clk 0:01:59]}  Qc6+ {[%clk 0:01:15]} 33. Kh2 {[%clk 0:01:53]}  Qc5 {[%clk 0:01:15]} 34. h4 {[%clk 0:01:41]}  h6 {[%clk 0:00:56]} 35. Re2 {[%clk 0:01:21]}  Re5 {[%clk 0:00:55]} 36. Rxe5 {[%clk 0:01:18]}  Qxe5 {[%clk 0:00:56]} 37. Qxb4 {[%clk 0:01:11]}  Qxf6 {[%clk 0:00:55]} 38. Qf4 {[%clk 0:01:06]}  Qc3 {[%clk 0:00:50]} 39. Qf2 {[%clk 0:01:04]}  d5 {[%clk 0:00:43]} 40. Qe2 {[%clk 0:01:03]}  d4 {[%clk 0:00:37]} 41. Qd3 {[%clk 0:01:03]}  Qb4 {[%clk 0:00:35]} 42. Kg2 {[%clk 0:01:02]}  h5 {[%clk 0:00:35]} 43. Qe4 {[%clk 0:01:00]}  Qc3 {[%clk 0:00:34]} 44. Qd3 {[%clk 0:00:54]}  Qc5 {[%clk 0:00:33]} 45. Kf2 {[%clk 0:00:53]}  Kf8 {[%clk 0:00:27]} 46. Kf3 {[%clk 0:00:51]}  Ke7 {[%clk 0:00:22]} 47. Qe4+ {[%clk 0:00:49]}  Kf8 {[%clk 0:00:22]} 48. Ke2 {[%clk 0:00:43]}  Qd6 {[%clk 0:00:19]} 49. Qa8+ {[%clk 0:00:40]}  Kg7 {[%clk 0:00:19]} 50. Qf3 {[%clk 0:00:41]}  Qc5 {[%clk 0:00:16]} 51. Kd1 {[%clk 0:00:33]}  f5 {[%clk 0:00:14]} 52. Qb7+ {[%clk 0:00:31]}  Kh6 {[%clk 0:00:14]} 53. Qf3 {[%clk 0:00:32]}  Kh7 {[%clk 0:00:13]} 54. Kc1 {[%clk 0:00:30]}  Qa3+ {[%clk 0:00:13]} 55. Kb1 {[%clk 0:00:30]}  Qc5 {[%clk 0:00:14]} 56. Kb2 {[%clk 0:00:28]}  Qe5 {[%clk 0:00:14]} 57. Qd3 {[%clk 0:00:27]}  Qc5 {[%clk 0:00:11]} 58. Qc4 {[%clk 0:00:22]}  Qe5 {[%clk 0:00:11]} 59. Qf7+ {[%clk 0:00:19]}  Kh6 {[%clk 0:00:10]} 60. Qf8+ {[%clk 0:00:19]}  Kh7 {[%clk 0:00:10]} 61. Qf7+ {[%clk 0:00:17]}  Kh8 {[%clk 0:00:09]} 62. Qxg6 {[%clk 0:00:14]}  d3+ {[%clk 0:00:09]} 63. c3 {[%clk 0:00:14]}  Qe2+ {[%clk 0:00:09]} 64. Ka3 {[%clk 0:00:14]}  d2 {[%clk 0:00:10]} 65. Qh6+ {[%clk 0:00:14]}  Kg8 {[%clk 0:00:10]} 66. Qg6+ {[%clk 0:00:14]}  Kf8 {[%clk 0:00:10]} 67. Qf6+ {[%clk 0:00:15]}  Ke8 {[%clk 0:00:10]} 68. Qc6+ {[%clk 0:00:13]}  Kf7 {[%clk 0:00:10]} 69. Qc7+ {[%clk 0:00:11]}  Qe7+ {[%clk 0:00:08]} 70. Qxe7+ {[%clk 0:00:10]}  Kxe7 {[%clk 0:00:09]} 0-1


[Site "https://www.chess.com"]

[Event "Titled Tuesday Blitz September 27 Late 2022"]
[White "Brodowski, Piotr"]
[Black "Bartel, Mateusz"]
[WhiteFideId "1124480"]
[BlackFideId "1112635"]
[WhiteElo "2312"]
[BlackElo "2526"]
[Result "0-1"]
[Round "10"]
[TimeControl "180+1"]
[Date "2022.09.27"]
[WhiteClock "0:00:01"]
[BlackClock "0:00:26"]

1. d4 {[%clk 0:03:00]}  Nf6 {[%clk 0:02:50]} 2. c4 {[%clk 0:02:53]}  g6 {[%clk 0:02:50]} 3. Nc3 {[%clk 0:02:52]}  Bg7 {[%clk 0:02:50]} 4. e4 {[%clk 0:02:52]}  d6 {[%clk 0:02:51]} 5. Be2 {[%clk 0:02:52]}  O-O {[%clk 0:02:44]} 6. Be3 {[%clk 0:02:50]}  e5 {[%clk 0:02:39]} 7. d5 {[%clk 0:02:43]}  Na6 {[%clk 0:02:30]} 8. g4 {[%clk 0:02:35]}  Nc5 {[%clk 0:02:27]} 9. f3 {[%clk 0:02:35]}  h5 {[%clk 0:02:25]} 10. h3 {[%clk 0:02:29]}  a5 {[%clk 0:02:24]} 11. Qd2 {[%clk 0:02:29]}  Nh7 {[%clk 0:02:11]} 12. O-O-O {[%clk 0:02:26]}  h4 {[%clk 0:02:10]} 13. Kb1 {[%clk 0:02:23]}  b6 {[%clk 0:02:09]} 14. Bd3 {[%clk 0:02:07]}  Bf6 {[%clk 0:02:09]} 15. Nge2 {[%clk 0:02:06]}  Bg5 {[%clk 0:02:09]} 16. f4 {[%clk 0:02:03]}  exf4 {[%clk 0:02:09]} 17. Nxf4 {[%clk 0:02:04]}  Bd7 {[%clk 0:02:04]} 18. Rhf1 {[%clk 0:02:03]}  Qe7 {[%clk 0:02:04]} 19. Bc2 {[%clk 0:02:02]}  Rae8 {[%clk 0:02:03]} 20. Qf2 {[%clk 0:01:55]}  Qd8 {[%clk 0:01:58]} 21. Bd4 {[%clk 0:01:48]}  Bf6 {[%clk 0:01:49]} 22. Rde1 {[%clk 0:01:24]}  Bxd4 {[%clk 0:01:47]} 23. Qxd4 {[%clk 0:01:25]}  Re5 {[%clk 0:01:47]} 24. Qf2 {[%clk 0:01:18]}  Qe7 {[%clk 0:01:36]} 25. Nfe2 {[%clk 0:01:16]}  Ng5 {[%clk 0:01:21]} 26. Qxh4 {[%clk 0:00:40]}  Ngxe4 {[%clk 0:01:20]} 27. Qxe7 {[%clk 0:00:40]}  Rxe7 {[%clk 0:01:21]} 28. Nxe4 {[%clk 0:00:34]}  Nxe4 {[%clk 0:01:21]} 29. Bxe4 {[%clk 0:00:35]}  Rxe4 {[%clk 0:01:21]} 30. Ng3 {[%clk 0:00:34]}  Rxc4 {[%clk 0:01:12]} 31. Re7 {[%clk 0:00:33]}  Bb5 {[%clk 0:01:11]} 32. Rc1 {[%clk 0:00:33]}  Rxc1+ {[%clk 0:00:42]} 33. Kxc1 {[%clk 0:00:34]}  Re8 {[%clk 0:00:42]} 34. Rxc7 {[%clk 0:00:30]}  Re3 {[%clk 0:00:41]} 35. Rc3 {[%clk 0:00:30]}  Rxc3+ {[%clk 0:00:35]} 36. bxc3 {[%clk 0:00:31]}  Bc4 {[%clk 0:00:34]} 37. Ne4 {[%clk 0:00:32]}  Bxa2 {[%clk 0:00:34]} 38. g5 {[%clk 0:00:16]}  Kf8 {[%clk 0:00:31]} 39. Nxd6 {[%clk 0:00:05]}  Bxd5 {[%clk 0:00:30]} 40. h4 {[%clk 0:00:06]}  Be6 {[%clk 0:00:27]} 41. Kb2 {[%clk 0:00:03]}  Ke7 {[%clk 0:00:27]} 42. Ne4 {[%clk 0:00:03]}  Kd7 {[%clk 0:00:28]} 43. Nd2 {[%clk 0:00:02]}  Kc6 {[%clk 0:00:27]} 44. c4 {[%clk 0:00:02]}  b5 {[%clk 0:00:25]} 45. cxb5+ {[%clk 0:00:02]}  Kxb5 {[%clk 0:00:26]} 46. Ne4 {[%clk 0:00:01]}  Kb4 {[%clk 0:00:26]} 0-1


[Site "https://www.chess.com"]

[Event "Titled Tuesday Blitz September 27 Late 2022"]
[White "Carlsen, Magnus"]
[Black "Dardha, Daniel"]
[WhiteFideId "1503014"]
[BlackFideId "240990"]
[WhiteElo "2830"]
[BlackElo "2528"]
[Result "1/2-1/2"]
[Round "10"]
[TimeControl "180+1"]
[Date "2022.09.27"]
[WhiteClock "0:00:21"]
[BlackClock "0:00:14"]

1. a3 {[%clk 0:03:00]}  d5 {[%clk 0:02:58]} 2. d4 {[%clk 0:02:59]}  Bf5 {[%clk 0:02:57]} 3. Nf3 {[%clk 0:02:46]}  Nf6 {[%clk 0:02:56]} 4. c4 {[%clk 0:02:44]}  dxc4 {[%clk 0:02:54]} 5. e3 {[%clk 0:02:36]}  e6 {[%clk 0:02:52]} 6. Bxc4 {[%clk 0:02:36]}  c5 {[%clk 0:02:51]} 7. Nc3 {[%clk 0:02:36]}  Nbd7 {[%clk 0:02:46]} 8. O-O {[%clk 0:02:35]}  cxd4 {[%clk 0:02:43]} 9. exd4 {[%clk 0:02:29]}  Rc8 {[%clk 0:02:34]} 10. Ba2 {[%clk 0:02:22]}  Be7 {[%clk 0:02:32]} 11. d5 {[%clk 0:02:23]}  exd5 {[%clk 0:02:27]} 12. Nxd5 {[%clk 0:02:23]}  O-O {[%clk 0:02:16]} 13. Nxe7+ {[%clk 0:02:23]}  Qxe7 {[%clk 0:02:16]} 14. Re1 {[%clk 0:02:24]}  Qd8 {[%clk 0:02:07]} 15. Be3 {[%clk 0:02:21]}  a6 {[%clk 0:01:59]} 16. Rc1 {[%clk 0:02:18]}  Rxc1 {[%clk 0:01:58]} 17. Qxc1 {[%clk 0:02:18]}  Qa5 {[%clk 0:01:58]} 18. h3 {[%clk 0:02:15]}  Re8 {[%clk 0:01:58]} 19. b4 {[%clk 0:02:13]}  Qd8 {[%clk 0:01:48]} 20. Rd1 {[%clk 0:02:12]}  Be6 {[%clk 0:01:46]} 21. Bxe6 {[%clk 0:02:08]}  Rxe6 {[%clk 0:01:47]} 22. Bd4 {[%clk 0:02:08]}  Qb8 {[%clk 0:01:22]} 23. Bb2 {[%clk 0:01:49]}  h6 {[%clk 0:01:19]} 24. Nd4 {[%clk 0:01:49]}  Rd6 {[%clk 0:01:15]} 25. Nf5 {[%clk 0:01:48]}  Rxd1+ {[%clk 0:01:15]} 26. Qxd1 {[%clk 0:01:49]}  Qf4 {[%clk 0:01:13]} 27. Nd6 {[%clk 0:01:37]}  b5 {[%clk 0:00:58]} 28. g3 {[%clk 0:01:36]}  Qg5 {[%clk 0:00:54]} 29. Kg2 {[%clk 0:01:29]}  Nb6 {[%clk 0:00:50]} 30. h4 {[%clk 0:01:20]}  Qg6 {[%clk 0:00:34]} 31. Qf3 {[%clk 0:01:16]}  Nfd5 {[%clk 0:00:34]} 32. Nf5 {[%clk 0:01:11]}  f6 {[%clk 0:00:25]} 33. Bd4 {[%clk 0:01:11]}  Qf7 {[%clk 0:00:23]} 34. h5 {[%clk 0:01:10]}  Kh7 {[%clk 0:00:20]} 35. Qe4 {[%clk 0:01:10]}  Kh8 {[%clk 0:00:19]} 36. Bxb6 {[%clk 0:00:59]}  Nxb6 {[%clk 0:00:19]} 37. g4 {[%clk 0:00:33]}  Qd5 {[%clk 0:00:12]} 38. Qxd5 {[%clk 0:00:32]}  Nxd5 {[%clk 0:00:13]} 39. Kf3 {[%clk 0:00:33]}  Nb6 {[%clk 0:00:13]} 40. Ke4 {[%clk 0:00:30]}  Nc4 {[%clk 0:00:13]} 41. Kd4 {[%clk 0:00:26]}  Nxa3 {[%clk 0:00:14]} 42. Ne3 {[%clk 0:00:26]}  g6 {[%clk 0:00:13]} 43. Kc5 {[%clk 0:00:23]}  f5 {[%clk 0:00:11]} 44. f3 {[%clk 0:00:17]}  fxg4 {[%clk 0:00:09]} 45. fxg4 {[%clk 0:00:18]}  Kg7 {[%clk 0:00:08]} 46. Nd5 {[%clk 0:00:17]}  Nc2 {[%clk 0:00:07]} 47. Kb6 {[%clk 0:00:15]}  gxh5 {[%clk 0:00:07]} 48. gxh5 {[%clk 0:00:15]}  Nxb4 {[%clk 0:00:07]} 49. Nxb4 {[%clk 0:00:16]}  Kf6 {[%clk 0:00:08]} 50. Kxa6 {[%clk 0:00:17]}  Kg5 {[%clk 0:00:08]} 51. Kxb5 {[%clk 0:00:18]}  Kxh5 {[%clk 0:00:09]} 52. Kc4 {[%clk 0:00:19]}  Kg4 {[%clk 0:00:10]} 53. Kd3 {[%clk 0:00:18]}  h5 {[%clk 0:00:11]} 54. Ke2 {[%clk 0:00:18]}  h4 {[%clk 0:00:12]} 55. Kf2 {[%clk 0:00:19]}  h3 {[%clk 0:00:13]} 56. Kg1 {[%clk 0:00:19]}  h2+ {[%clk 0:00:14]} 57. Kh1 {[%clk 0:00:20]}  Kg5 {[%clk 0:00:14]} 58. Nd3 {[%clk 0:00:20]}  Kg6 {[%clk 0:00:14]} 59. Kxh2 {[%clk 0:00:21]} 1/2-1/2


[Site "https://www.chess.com"]

[Event "Titled Tuesday Blitz September 27 Late 2022"]
[White "Daggupati, Balaji"]
[Black "Bortnyk, Mykola"]
[WhiteFideId "2090759"]
[BlackFideId "14120836"]
[WhiteElo "2781"]
[BlackElo "2582"]
[Result "0-1"]
[Round "10"]
[TimeControl "180+1"]
[Date "2022.09.27"]
[WhiteClock "0:00:08"]
[BlackClock "0:00:48"]

1. e4 {[%clk 0:03:00]}  Nf6 {[%clk 0:02:57]} 2. e5 {[%clk 0:03:01]}  Nd5 {[%clk 0:02:54]} 3. d4 {[%clk 0:03:01]}  d6 {[%clk 0:02:54]} 4. c4 {[%clk 0:03:01]}  Nb6 {[%clk 0:02:54]} 5. exd6 {[%clk 0:03:02]}  exd6 {[%clk 0:02:55]} 6. Nf3 {[%clk 0:02:59]}  Be7 {[%clk 0:02:55]} 7. Be2 {[%clk 0:03:00]}  O-O {[%clk 0:02:56]} 8. O-O {[%clk 0:03:00]}  Bg4 {[%clk 0:02:54]} 9. h3 {[%clk 0:02:36]}  Bh5 {[%clk 0:02:53]} 10. b3 {[%clk 0:02:28]}  Bf6 {[%clk 0:02:51]} 11. Bb2 {[%clk 0:02:28]}  Re8 {[%clk 0:02:47]} 12. Nbd2 {[%clk 0:02:25]}  Nc6 {[%clk 0:02:42]} 13. Re1 {[%clk 0:02:16]}  a5 {[%clk 0:02:34]} 14. a3 {[%clk 0:02:06]}  d5 {[%clk 0:02:29]} 15. c5 {[%clk 0:02:04]}  Nd7 {[%clk 0:02:29]} 16. Qc2 {[%clk 0:02:02]}  Bg6 {[%clk 0:02:21]} 17. Bd3 {[%clk 0:02:02]}  Nf8 {[%clk 0:02:19]} 18. Bc3 {[%clk 0:01:59]}  Ne6 {[%clk 0:02:18]} 19. Bxg6 {[%clk 0:01:53]}  hxg6 {[%clk 0:02:18]} 20. Qb2 {[%clk 0:01:48]}  Nf4 {[%clk 0:02:14]} 21. Qc2 {[%clk 0:01:47]}  Qd7 {[%clk 0:01:57]} 22. Kh2 {[%clk 0:01:43]}  Ne2 {[%clk 0:01:49]} 23. Qd3 {[%clk 0:01:38]}  Qf5 {[%clk 0:01:48]} 24. Qxf5 {[%clk 0:01:25]}  gxf5 {[%clk 0:01:48]} 25. Bb2 {[%clk 0:01:22]}  Nexd4 {[%clk 0:01:46]} 26. Nxd4 {[%clk 0:01:18]}  Nxd4 {[%clk 0:01:42]} 27. Kh1 {[%clk 0:01:14]}  Rxe1+ {[%clk 0:01:34]} 28. Rxe1 {[%clk 0:01:14]}  Nc2 {[%clk 0:01:34]} 29. Rb1 {[%clk 0:00:54]}  Bxb2 {[%clk 0:01:31]} 30. Rxb2 {[%clk 0:00:55]}  Nxa3 {[%clk 0:01:32]} 31. Nf3 {[%clk 0:00:56]}  Nb5 {[%clk 0:01:30]} 32. Re2 {[%clk 0:00:54]}  d4 {[%clk 0:01:25]} 33. Re5 {[%clk 0:00:51]}  Rd8 {[%clk 0:01:25]} 34. Rxf5 {[%clk 0:00:34]}  d3 {[%clk 0:01:24]} 35. Nd2 {[%clk 0:00:35]}  Nd4 {[%clk 0:01:15]} 36. Re5 {[%clk 0:00:32]}  Kf8 {[%clk 0:01:03]} 37. Re1 {[%clk 0:00:20]}  Rd5 {[%clk 0:00:58]} 38. Rc1 {[%clk 0:00:18]}  Nc2 {[%clk 0:00:55]} 39. c6 {[%clk 0:00:17]}  b5 {[%clk 0:00:55]} 40. Rd1 {[%clk 0:00:13]}  a4 {[%clk 0:00:53]} 41. bxa4 {[%clk 0:00:13]}  bxa4 {[%clk 0:00:54]} 42. Nc4 {[%clk 0:00:13]}  a3 {[%clk 0:00:50]} 43. Rb1 {[%clk 0:00:08]}  a2 {[%clk 0:00:48]} 0-1


[Site "https://www.chess.com"]

[Event "Titled Tuesday Blitz September 27 Late 2022"]
[White "Dounis, Alexandros"]
[Black "Rustemov, Alexander"]
[WhiteFideId "4213238"]
[BlackFideId "4119002"]
[WhiteElo "2204"]
[BlackElo "2838"]
[Result "1-0"]
[Round "10"]
[TimeControl "180+1"]
[Date "2022.09.27"]
[WhiteClock "0:00:16"]
[BlackClock "0:00:01"]

1. Nf3 {[%clk 0:03:00]}  d5 {[%clk 0:02:59]} 2. g3 {[%clk 0:03:00]}  c6 {[%clk 0:02:59]} 3. Bg2 {[%clk 0:03:01]}  Nf6 {[%clk 0:03:00]} 4. O-O {[%clk 0:03:01]}  Bf5 {[%clk 0:03:00]} 5. d3 {[%clk 0:03:01]}  e6 {[%clk 0:03:01]} 6. Nh4 {[%clk 0:03:00]}  Bg4 {[%clk 0:02:59]} 7. h3 {[%clk 0:03:00]}  Bh5 {[%clk 0:02:59]} 8. f4 {[%clk 0:03:00]}  Be7 {[%clk 0:02:58]} 9. Qe1 {[%clk 0:03:00]}  Nfd7 {[%clk 0:02:56]} 10. Nf3 {[%clk 0:03:00]}  O-O {[%clk 0:02:52]} 11. e4 {[%clk 0:02:58]}  f5 {[%clk 0:02:44]} 12. Nc3 {[%clk 0:02:50]}  Na6 {[%clk 0:02:32]} 13. Be3 {[%clk 0:02:48]}  Qc7 {[%clk 0:02:25]} 14. Qf2 {[%clk 0:02:43]}  Rae8 {[%clk 0:02:20]} 15. Kh1 {[%clk 0:02:42]}  Bg6 {[%clk 0:02:08]} 16. e5 {[%clk 0:02:24]}  Bh5 {[%clk 0:01:59]} 17. Nh2 {[%clk 0:02:17]}  b6 {[%clk 0:01:55]} 18. d4 {[%clk 0:02:12]}  h6 {[%clk 0:01:39]} 19. Bf3 {[%clk 0:02:08]}  Bxf3+ {[%clk 0:01:37]} 20. Nxf3 {[%clk 0:02:08]}  g6 {[%clk 0:01:35]} 21. Rg1 {[%clk 0:02:05]}  Kh7 {[%clk 0:01:35]} 22. Rg2 {[%clk 0:02:02]}  Rg8 {[%clk 0:01:33]} 23. Rag1 {[%clk 0:02:01]}  Rg7 {[%clk 0:01:33]} 24. g4 {[%clk 0:02:01]}  Reg8 {[%clk 0:01:31]} 25. Rg3 {[%clk 0:01:57]}  Qd8 {[%clk 0:01:30]} 26. R1g2 {[%clk 0:01:56]}  Bh4 {[%clk 0:01:26]} 27. Nxh4 {[%clk 0:01:54]}  Qxh4 {[%clk 0:01:27]} 28. Ne2 {[%clk 0:01:46]}  c5 {[%clk 0:01:21]} 29. c3 {[%clk 0:01:41]}  c4 {[%clk 0:01:20]} 30. g5 {[%clk 0:01:37]}  Rh8 {[%clk 0:01:11]} 31. gxh6 {[%clk 0:01:32]}  Qxh6 {[%clk 0:01:10]} 32. Ng1 {[%clk 0:01:26]}  Kg8 {[%clk 0:01:09]} 33. Nf3 {[%clk 0:01:24]}  Nc7 {[%clk 0:01:06]} 34. Ng5 {[%clk 0:01:23]}  Nf8 {[%clk 0:01:06]} 35. Qf3 {[%clk 0:01:22]}  Rd7 {[%clk 0:00:57]} 36. b3 {[%clk 0:01:11]}  Qh5 {[%clk 0:00:56]} 37. Qf1 {[%clk 0:01:07]}  b5 {[%clk 0:00:48]} 38. bxc4 {[%clk 0:01:05]}  dxc4 {[%clk 0:00:47]} 39. a4 {[%clk 0:01:02]}  a6 {[%clk 0:00:47]} 40. axb5 {[%clk 0:01:02]}  axb5 {[%clk 0:00:47]} 41. Qb1 {[%clk 0:00:56]}  Nh7 {[%clk 0:00:47]} 42. Nxe6 {[%clk 0:00:45]}  Nxe6 {[%clk 0:00:43]} 43. Qxb5 {[%clk 0:00:45]}  Nhf8 {[%clk 0:00:31]} 44. Qxc4 {[%clk 0:00:45]}  Rc7 {[%clk 0:00:23]} 45. Qd3 {[%clk 0:00:41]}  Ng7 {[%clk 0:00:19]} 46. d5 {[%clk 0:00:40]}  Rb7 {[%clk 0:00:18]} 47. Kh2 {[%clk 0:00:39]}  Rb3 {[%clk 0:00:16]} 48. Qc4 {[%clk 0:00:37]}  Qd1 {[%clk 0:00:11]} 49. e6 {[%clk 0:00:25]}  Kh7 {[%clk 0:00:11]} 50. e7 {[%clk 0:00:21]}  Rb1 {[%clk 0:00:10]} 51. Rg1 {[%clk 0:00:18]}  Qc2+ {[%clk 0:00:09]} 52. R3g2 {[%clk 0:00:18]}  Rxg1 {[%clk 0:00:02]} 53. Rxc2 {[%clk 0:00:17]}  Re1 {[%clk 0:00:01]} 54. exf8=Q {[%clk 0:00:16]} 1-0


[Site "https://www.chess.com"]

[Event "Titled Tuesday Blitz September 27 Late 2022"]
[White "Gubajdullin, Alexei"]
[Black "Fawzy, Adham"]
[WhiteFideId "4141202"]
[BlackFideId "10613129"]
[WhiteElo "2195"]
[BlackElo "2541"]
[Result "0-1"]
[Round "10"]
[TimeControl "180+1"]
[Date "2022.09.27"]
[WhiteClock "0:00:04"]
[BlackClock "0:01:22"]

1. d4 {[%clk 0:02:57]}  Nf6 {[%clk 0:02:59]} 2. Nf3 {[%clk 0:02:56]}  g6 {[%clk 0:02:59]} 3. Bf4 {[%clk 0:02:56]}  Bg7 {[%clk 0:02:59]} 4. e3 {[%clk 0:02:55]}  d6 {[%clk 0:03:00]} 5. Be2 {[%clk 0:02:55]}  O-O {[%clk 0:03:00]} 6. O-O {[%clk 0:02:55]}  b6 {[%clk 0:03:01]} 7. h3 {[%clk 0:02:54]}  Bb7 {[%clk 0:03:01]} 8. Bh2 {[%clk 0:02:54]}  Nbd7 {[%clk 0:03:00]} 9. a4 {[%clk 0:02:54]}  a6 {[%clk 0:03:00]} 10. a5 {[%clk 0:02:54]}  b5 {[%clk 0:03:00]} 11. c4 {[%clk 0:02:54]}  bxc4 {[%clk 0:03:00]} 12. Bxc4 {[%clk 0:02:54]}  e6 {[%clk 0:02:58]} 13. Nc3 {[%clk 0:02:53]}  h6 {[%clk 0:02:54]} 14. b4 {[%clk 0:02:47]}  Qe7 {[%clk 0:02:47]} 15. b5 {[%clk 0:02:46]}  axb5 {[%clk 0:02:41]} 16. Bxb5 {[%clk 0:02:45]}  Ne4 {[%clk 0:02:34]} 17. Nxe4 {[%clk 0:02:40]}  Bxe4 {[%clk 0:02:35]} 18. a6 {[%clk 0:02:37]}  Rfb8 {[%clk 0:02:33]} 19. Bd3 {[%clk 0:02:36]}  Nf6 {[%clk 0:02:27]} 20. Bxe4 {[%clk 0:02:34]}  Nxe4 {[%clk 0:02:28]} 21. Qc2 {[%clk 0:02:34]}  Nf6 {[%clk 0:02:09]} 22. Qc6 {[%clk 0:02:20]}  Qd7 {[%clk 0:01:58]} 23. Rfc1 {[%clk 0:02:18]}  Qxc6 {[%clk 0:01:56]} 24. Rxc6 {[%clk 0:02:17]}  Nd5 {[%clk 0:01:57]} 25. e4 {[%clk 0:01:49]}  Nb4 {[%clk 0:01:53]} 26. Rxc7 {[%clk 0:01:48]}  Rxa6 {[%clk 0:01:53]} 27. Rb1 {[%clk 0:01:29]}  Rba8 {[%clk 0:01:49]} 28. Bxd6 {[%clk 0:01:22]}  Nd3 {[%clk 0:01:32]} 29. Bc5 {[%clk 0:00:56]}  Ra1 {[%clk 0:01:28]} 30. Rxa1 {[%clk 0:00:55]}  Rxa1+ {[%clk 0:01:29]} 31. Kh2 {[%clk 0:00:54]}  Nxf2 {[%clk 0:01:28]} 32. d5 {[%clk 0:00:53]}  Nxe4 {[%clk 0:01:28]} 33. d6 {[%clk 0:00:53]}  Nxc5 {[%clk 0:01:25]} 34. Rxc5 {[%clk 0:00:49]}  Rd1 {[%clk 0:01:25]} 35. Rc8+ {[%clk 0:00:47]}  Bf8 {[%clk 0:01:24]} 36. Ne5 {[%clk 0:00:22]}  Rxd6 {[%clk 0:01:21]} 37. Rc7 {[%clk 0:00:22]}  Rd5 {[%clk 0:01:21]} 38. Nxf7 {[%clk 0:00:20]}  Rf5 {[%clk 0:01:21]} 39. Nxh6+ {[%clk 0:00:04]}  Bxh6 {[%clk 0:01:22]} 40. h4 {[%clk 0:00:03]}  Bf4+ {[%clk 0:01:22]} 41. Kh3 {[%clk 0:00:04]}  Bxc7 {[%clk 0:01:22]} 0-1


[Site "https://www.chess.com"]

[Event "Titled Tuesday Blitz September 27 Late 2022"]
[White "Hambleton, Aman"]
[Black "Diaz Herquinio, Brahian"]
[WhiteFideId "2606577"]
[BlackFideId "3809480"]
[WhiteElo "2538"]
[BlackElo "1965"]
[Result "1-0"]
[Round "10"]
[TimeControl "180+1"]
[Date "2022.09.28"]
[WhiteClock "0:00:05"]
[BlackClock "0:00:10"]

1. e4 {[%clk 0:03:00]}  c5 {[%clk 0:02:57]} 2. Bc4 {[%clk 0:02:58]}  e6 {[%clk 0:02:56]} 3. Nc3 {[%clk 0:02:59]}  a6 {[%clk 0:02:56]} 4. a3 {[%clk 0:02:59]}  Nc6 {[%clk 0:02:56]} 5. Ba2 {[%clk 0:03:00]}  Qc7 {[%clk 0:02:55]} 6. d3 {[%clk 0:03:01]}  b5 {[%clk 0:02:52]} 7. Nf3 {[%clk 0:03:01]}  d6 {[%clk 0:02:47]} 8. O-O {[%clk 0:02:54]}  Be7 {[%clk 0:02:47]} 9. Re1 {[%clk 0:02:53]}  Nf6 {[%clk 0:02:46]} 10. h3 {[%clk 0:02:48]}  O-O {[%clk 0:02:46]} 11. Bf4 {[%clk 0:02:46]}  Bb7 {[%clk 0:02:30]} 12. Qd2 {[%clk 0:02:43]}  Ne5 {[%clk 0:02:10]} 13. Nxe5 {[%clk 0:02:41]}  dxe5 {[%clk 0:02:10]} 14. Be3 {[%clk 0:02:42]}  Rad8 {[%clk 0:01:58]} 15. Rad1 {[%clk 0:02:41]}  c4 {[%clk 0:01:56]} 16. Qe2 {[%clk 0:02:38]}  cxd3 {[%clk 0:01:54]} 17. cxd3 {[%clk 0:02:29]}  Bxa3 {[%clk 0:01:41]} 18. Nxb5 {[%clk 0:02:27]}  axb5 {[%clk 0:01:39]} 19. bxa3 {[%clk 0:02:28]}  Qe7 {[%clk 0:01:23]} 20. Rc1 {[%clk 0:02:20]}  Rc8 {[%clk 0:01:14]} 21. Qb2 {[%clk 0:02:20]}  Ba6 {[%clk 0:01:02]} 22. Rxc8 {[%clk 0:00:45]}  Rxc8 {[%clk 0:01:00]} 23. Rc1 {[%clk 0:00:45]}  Rxc1+ {[%clk 0:00:56]} 24. Qxc1 {[%clk 0:00:46]}  Qd6 {[%clk 0:00:46]} 25. Qc3 {[%clk 0:00:44]}  Nd7 {[%clk 0:00:42]} 26. Bb1 {[%clk 0:00:39]}  h6 {[%clk 0:00:39]} 27. Bc2 {[%clk 0:00:36]}  Bb7 {[%clk 0:00:29]} 28. f3 {[%clk 0:00:31]}  f5 {[%clk 0:00:21]} 29. Kf1 {[%clk 0:00:17]}  Kh7 {[%clk 0:00:19]} 30. Ke2 {[%clk 0:00:14]}  Nf6 {[%clk 0:00:17]} 31. Qc5 {[%clk 0:00:09]}  Qxc5 {[%clk 0:00:14]} 32. Bxc5 {[%clk 0:00:10]}  Nd7 {[%clk 0:00:15]} 33. Bd6 {[%clk 0:00:06]}  Kg6 {[%clk 0:00:14]} 34. g4 {[%clk 0:00:05]}  fxg4 {[%clk 0:00:14]} 35. hxg4 {[%clk 0:00:04]}  Kg5 {[%clk 0:00:13]} 36. Be7+ {[%clk 0:00:03]}  Kf4 {[%clk 0:00:13]} 37. Kf2 {[%clk 0:00:03]}  Bc6 {[%clk 0:00:11]} 38. Bd1 {[%clk 0:00:02]}  Nb6 {[%clk 0:00:10]} 39. Bc5 {[%clk 0:00:02]}  Nc4 {[%clk 0:00:06]} 40. dxc4 {[%clk 0:00:02]}  Kg5 {[%clk 0:00:06]} 41. Be7+ {[%clk 0:00:02]}  Kg6 {[%clk 0:00:06]} 42. cxb5 {[%clk 0:00:02]}  Bxb5 {[%clk 0:00:06]} 43. a4 {[%clk 0:00:02]}  Kf7 {[%clk 0:00:07]} 44. axb5 {[%clk 0:00:02]}  Kxe7 {[%clk 0:00:08]} 45. Ke3 {[%clk 0:00:02]}  Kd6 {[%clk 0:00:09]} 46. Be2 {[%clk 0:00:03]}  Kc5 {[%clk 0:00:09]} 47. f4 {[%clk 0:00:04]}  g5 {[%clk 0:00:08]} 48. fxe5 {[%clk 0:00:04]}  Kb6 {[%clk 0:00:08]} 49. Kd4 {[%clk 0:00:04]}  Kc7 {[%clk 0:00:09]} 50. Kc5 {[%clk 0:00:05]}  Kb7 {[%clk 0:00:10]} 51. b6 {[%clk 0:00:05]} 1-0


[Site "https://www.chess.com"]